bitfinex-derivatives/quotes_BTCF0:USTF0_20250718
["timestamp","ask_amount","ask_price","bid_price","bid_amount"]
[1752847614580,0.364429,119020.0,119010.0,1.72641955]
[1752847614879,0.364429,119020.0,119010.0,1.72896955]
[1752847615180,0.364429,119020.0,119010.0,1.22736009]
[1752847615381,0.364429,119020.0,119010.0,1.72896955]
[1752847615580,0.5323601,119020.0,119010.0,1.72896955]
[1752847615781,0.364429,119020.0,119010.0,1.72896955]
[1752847616384,0.340979,119020.0,119010.0,1.72896955]
[1752847616881,0.5089101,119020.0,119010.0,1.72896955]
[1752847617081,0.364429,119020.0,119010.0,1.72896955]
[1752847617480,0.340979,119020.0,119010.0,1.72896955]
[1752847617882,0.5323601,119020.0,119010.0,1.05048489]
[1752847618077,0.5323601,119020.0,119010.0,1.04924489]
[1752847618279,0.2977852,119010.0,119000.0,0.3608]
[1752847618583,0.2977852,119010.0,119000.0,0.9806]
[1752847619282,0.2977852,119010.0,119000.0,1.1485593]
[1752847619682,0.2977852,119010.0,119000.0,1.65016876]
[1752847620282,0.370039,119010.0,119000.0,1.65016876]
[1752847620483,0.370039,119010.0,119000.0,1.72614966]
[1752847620784,0.346589,119010.0,119000.0,1.72614966]
[1752847621084,0.240199,119010.0,119000.0,2.22775912]
[1752847621585,0.346589,119010.0,119000.0,1.10634966]
[1752847621877,0.5379842,119010.0,119000.0,1.1481193]
[1752847622384,0.5379842,119010.0,119000.0,1.65112876]
[1752847622678,0.5379842,119010.0,119000.0,1.1495193]
[1752847622884,0.5232842,119010.0,119000.0,1.1495193]
[1752847623084,0.355339,119010.0,119000.0,1.65112876]
[1752847623280,0.274049,119010.0,119000.0,1.66005876]
[1752847623580,0.222949,119010.0,119000.0,2.16166822]
[1752847624787,0.216569,119010.0,119000.0,2.16166822]
[1752847625188,0.12984,119040.0,119000.0,2.57973222]
[1752847625384,0.12984,119040.0,119030.0,1.39112646]
[1752847625695,0.12984,119040.0,119030.0,2.01172646]
[1752847626879,0.10639,119040.0,119030.0,2.01172646]
[1752847627481,0.12984,119050.0,119040.0,0.1679029]
[1752847627683,0.2977288,119050.0,119040.0,1.03031236]
[1752847628486,0.12984,119050.0,119040.0,1.03031236]
[1752847629192,0.13284,119050.0,119040.0,1.03031236]
[1752847629394,0.373039,119050.0,119040.0,1.03031236]
[1752847629790,0.5409278,119050.0,119040.0,1.03031236]
[1752847629994,0.373039,119050.0,119040.0,1.03031236]
[1752847630586,0.370039,119050.0,119040.0,1.03031236]
[1752847630787,0.371039,119050.0,119040.0,1.03031236]
[1752847630987,0.347589,119050.0,119040.0,1.03031236]
[1752847631790,0.241199,119050.0,119040.0,1.03031236]
[1752847632395,0.241199,119050.0,119040.0,1.53192182]
[1752847632597,0.241199,119050.0,119040.0,1.03031236]
[1752847633197,0.241199,119050.0,119040.0,1.79711906]
[1752847633395,0.241199,119050.0,119040.0,1.2955096]
[1752847633895,0.240199,119050.0,119040.0,1.12750961]
[1752847634101,0.240199,119050.0,119040.0,1.64879236]
[1752847634301,0.370039,119050.0,119040.0,1.48128946]
[1752847634500,0.5379278,119050.0,119040.0,0.3608]
[1752847634803,0.5379278,119050.0,119040.0,0.98052]
[1752847635096,0.4080878,119050.0,119040.0,0.98052]
[1752847635298,0.4080878,119050.0,119040.0,1.03484236]
[1752847635299,0.346589,119050.0,119040.0,1.03484236]
[1752847635497,0.346589,119050.0,119040.0,1.65572236]
[1752847636099,0.346589,119050.0,119040.0,1.65472236]
[1752847636697,0.346589,119050.0,119040.0,1.65572236]
[1752847637303,0.370039,119050.0,119040.0,1.65472236]
[1752847637496,0.5379285,119050.0,119040.0,1.1505829]
[1752847637702,0.5379285,119050.0,119040.0,1.65219236]
[1752847637901,0.370039,119050.0,119040.0,1.65219236]
[1752847638504,0.5379285,119050.0,119040.0,1.65219236]
[1752847639495,0.5379285,119050.0,119040.0,1.1505829]
[1752847639703,0.5379285,119050.0,119040.0,1.65219236]
[1752847640198,0.370039,119050.0,119040.0,1.65219236]
[1752847640405,0.5379285,119050.0,119040.0,1.65219236]
[1752847641109,0.5379285,119050.0,119040.0,0.98268]
[1752847642007,1.03953796,119050.0,119040.0,0.002]
[1752847642209,1.03953796,119050.0,119040.0,0.001]
[1752847642404,1.03953796,119050.0,119040.0,0.61992]
[1752847643006,1.03953796,119050.0,119040.0,0.7878236]
[1752847643307,1.03953796,119050.0,119040.0,0.61892]
[1752847643607,1.03953796,119050.0,119040.0,0.7868236]
[1752847644204,0.5379285,119050.0,119040.0,0.7868236]
[1752847645100,0.5379285,119050.0,119040.0,1.28843306]
[1752847645702,0.5379285,119050.0,119040.0,1.64923306]
[1752847645902,0.370039,119050.0,119040.0,1.1476236]
[1752847646108,0.5379285,119050.0,119040.0,1.1476236]
[1752847646307,0.370039,119050.0,119040.0,1.1476236]
[1752847646501,0.370039,119050.0,119040.0,1.64923306]
[1752847646906,0.370039,119050.0,119040.0,1.69714481]
[1752847647610,0.370039,119050.0,119040.0,1.69814481]
[1752847648207,0.370039,119050.0,119040.0,1.69914481]
[1752847648912,0.370039,119050.0,119040.0,1.69619481]
[1752847649116,0.5379285,119050.0,119040.0,1.69619481]
[1752847649411,0.370039,119050.0,119040.0,1.69619481]
[1752847649812,0.370039,119050.0,119040.0,1.69830481]
[1752847650012,0.370039,119050.0,119040.0,1.69914481]
[1752847651115,0.5379285,119050.0,119040.0,1.69914481]
[1752847651307,0.5379285,119050.0,119040.0,1.69830481]
[1752847651511,0.370039,119050.0,119040.0,1.69830481]
[1752847651711,0.370039,119050.0,119040.0,1.69914481]
[1752847651912,0.370039,119050.0,119040.0,1.65418306]
[1752847652513,0.5379285,119050.0,119040.0,1.65418306]
[1752847652709,0.370039,119050.0,119040.0,1.69920641]
[1752847652913,0.6198185,119050.0,119040.0,1.19824695]
[1752847653119,0.6198185,119050.0,119040.0,1.69985641]
[1752847653314,0.451929,119050.0,119040.0,1.69985641]
[1752847653616,0.6198185,119050.0,119040.0,1.19824695]
[1752847653916,0.451929,119050.0,119040.0,1.69985641]
[1752847656113,0.451929,119050.0,119040.0,1.19824695]
[1752847656320,0.381229,119050.0,119040.0,1.69648641]
[1752847657120,0.240199,119050.0,119040.0,1.69513641]
[1752847658221,0.240199,119050.0,119040.0,1.65011306]
[1752847658516,0.240199,119050.0,119040.0,2.21175366]
[1752847658922,0.240199,119050.0,119040.0,2.37975365]
[1752847659117,0.251389,119050.0,119040.0,2.47679544]
[1752847659316,0.240199,119050.0,119040.0,2.4167643]
[1752847659716,0.240199,119050.0,119040.0,2.49180323]
[1752847660012,0.1678443,119090.0,119080.0,0.1678472]
[1752847660219,0.18564746,119090.0,119080.0,2.00881666]
[1752847660414,0.01780316,119090.0,119080.0,2.00881666]
[1752847660819,0.18563626,119090.0,119080.0,1.33936]
[1752847661018,0.18563626,119090.0,119080.0,1.5072072]
[1752847661218,0.18863626,119090.0,119080.0,2.00881666]
[1752847661424,0.1708331,119090.0,119080.0,2.00881666]
[1752847661716,0.18862847,119090.0,119080.0,2.00881666]
[1752847661916,0.18862846,119090.0,119080.0,1.5072072]
[1752847662119,0.1708331,119090.0,119080.0,2.00881666]
[1752847663025,0.1708331,119090.0,119080.0,2.12050523]
[1752847663220,0.1708331,119090.0,119080.0,2.07540415]
[1752847665224,0.003,119090.0,119080.0,2.07540415]
[1752847665423,0.1708331,119090.0,119080.0,2.12050523]
[1752847665624,0.1708331,119090.0,119080.0,2.07540415]
[1752847666424,0.1708331,119090.0,119080.0,2.12050523]
[1752847668615,0.003,119090.0,119080.0,2.12050523]
[1752847669627,0.1708331,119090.0,119080.0,2.12050523]
[1752847670727,0.1678331,119090.0,119080.0,2.12050523]
[1752847670922,0.1678331,119090.0,119080.0,1.33489803]
[1752847671129,0.1678331,119090.0,119080.0,2.07516415]
[1752847671426,0.1678331,119090.0,119080.0,2.12026523]
[1752847672131,0.2986985,119100.0,119090.0,0.1678331]
[1752847672430,0.2567413,119100.0,119090.0,1.03024256]
[1752847673328,0.2567413,119100.0,119090.0,1.64768256]
[1752847674029,0.2577413,119100.0,119090.0,1.64768256]
[1752847674726,0.006,119100.0,119090.0,1.64768256]
[1752847674929,0.173819,119100.0,119090.0,1.64768256]
[1752847675124,0.006,119100.0,119090.0,1.69274364]
[1752847676031,0.005,119100.0,119090.0,1.69274364]
[1752847680334,0.005,119100.0,119090.0,1.64764256]
[1752847680738,0.005,119100.0,119090.0,1.70777733]
[1752847681142,0.005,119100.0,119090.0,1.70784733]
[1752847682244,0.005,119100.0,119090.0,2.20945679]
[1752847682245,0.00493,119100.0,119090.0,2.20945679]
[1752847682541,0.00493,119100.0,119090.0,2.14916842]
[1752847683542,0.0604394,119160.0,119140.0,0.2516296]
[1752847683743,0.2096906,119150.0,119140.0,0.5704899]
[1752847683936,0.2096785,119160.0,119150.0,0.1677486]
[1752847684145,0.1677345,119160.0,119150.0,0.57869455]
[1752847684437,0.1677345,119160.0,119150.0,0.62063105]
[1752847684640,0.1677345,119160.0,119150.0,0.62062205]
[1752847684840,0.1677345,119160.0,119150.0,1.10530189]
[1752847685139,0.1257961,119170.0,119160.0,0.1677345]
[1752847685140,0.2096614,119170.0,119160.0,0.1677345]
[1752847685444,0.2096614,119170.0,119160.0,1.64718396]
[1752847685643,0.2309014,119170.0,119160.0,1.64718396]
[1752847685846,0.90034286,119170.0,119160.0,0.3608]
[1752847686138,0.2309014,119170.0,119160.0,1.1455345]
[1752847686338,0.91916599,119170.0,119160.0,0.3608]
[1752847686545,0.91916599,119170.0,119140.0,0.6124356]
[1752847686546,0.1889886,119150.0,119140.0,0.6124356]
[1752847686744,0.1889886,119150.0,119140.0,0.5285551]
[1752847686745,0.69059806,119150.0,119140.0,0.5285551]
[1752847687042,0.1889886,119150.0,119140.0,1.211524]
[1752847687244,0.1889886,119150.0,119140.0,1.0437689]
[1752847687540,0.1889886,119150.0,119140.0,1.2115316]
[1752847687740,0.1889886,119150.0,119140.0,0.4267689]
[1752847687943,0.1889886,119150.0,119140.0,1.1455627]
[1752847688439,0.02124,119150.0,119140.0,1.64717216]
[1752847689044,0.02124,119150.0,119140.0,1.03017216]
[1752847689244,0.02124,119150.0,119140.0,1.64709216]
[1752847689746,0.02624,119160.0,119150.0,0.1677486]
[1752847690041,0.02624,119160.0,119150.0,1.03015806]
[1752847690650,0.02624,119160.0,119150.0,1.64703806]
[1752847690850,0.02124,119160.0,119150.0,1.64703806]
[1752847691050,0.02124,119160.0,119150.0,1.71411788]
[1752847691247,0.04006313,119170.0,119160.0,0.1677345]
[1752847691440,0.04006313,119170.0,119160.0,1.03014396]
[1752847691852,0.20778353,119170.0,119160.0,1.03014396]
[1752847692047,0.02124,119170.0,119160.0,1.03014396]
[1752847693354,0.02424,119170.0,119160.0,1.03014396]
[1752847693549,0.02424,119170.0,119160.0,1.64686396]
[1752847693953,0.003,119170.0,119160.0,1.65179396]
[1752847694548,0.1889345,119190.0,119170.0,0.083855]
[1752847694752,0.251544,119190.0,119180.0,1.5059864]
[1752847695050,0.214606,119200.0,119190.0,0.1676923]
[1752847695255,0.235846,119200.0,119190.0,0.5284923]
[1752847696157,0.1939253,119200.0,119190.0,1.03010176]
[1752847697058,0.1939182,119200.0,119190.0,1.03010176]
[1752847697451,0.1969182,119200.0,119190.0,1.03010176]
[1752847697955,0.02924,119200.0,119190.0,1.64930176]
[1752847698152,0.02924,119200.0,119190.0,1.65787578]
[1752847698454,0.008,119200.0,119190.0,1.66360578]
[1752847698656,0.02924,119200.0,119190.0,1.65867578]
[1752847698855,0.02924,119200.0,119190.0,1.03867578]
[1752847699057,0.02924,119200.0,119190.0,1.65871578]
[1752847699353,0.008,119200.0,119190.0,1.04360578]
[1752847699557,0.006,119200.0,119190.0,1.66360578]
[1752847699952,0.006,119200.0,119190.0,1.71140578]
[1752847700149,0.06326,119200.0,119190.0,1.71140578]
[1752847700954,0.006,119200.0,119190.0,1.71140578]
[1752847701261,0.13563111,119220.0,119210.0,0.2167742]
[1752847701456,0.13563111,119220.0,119210.0,2.05910366]
[1752847702054,0.00875111,119220.0,119210.0,2.05910366]
[1752847703154,0.12688,119240.0,119230.0,0.1676361]
[1752847703362,0.12688,119240.0,119230.0,3.20968556]
[1752847703859,0.10564,119240.0,119230.0,3.20968556]
[1752847704049,0.05726,119240.0,119230.0,3.20968556]
[1752847704252,0.224882,119240.0,119230.0,2.42352946]
[1752847704452,0.224882,119240.0,119230.0,2.65916422]
[1752847704658,0.294502,119240.0,119230.0,2.49152812]
[1752847704861,0.294502,119240.0,119230.0,2.56879866]
[1752847705061,0.294502,119240.0,119230.0,3.27840422]
[1752847705360,0.294502,119240.0,119230.0,3.27824422]
[1752847706157,0.224882,119240.0,119230.0,2.86044796]
[1752847706459,0.05726,119240.0,119230.0,2.78488472]
[1752847706664,0.167622,119240.0,119230.0,3.40336472]
[1752847706954,0.167622,119240.0,119210.0,0.4430745]
[1752847706955,0.50160946,119240.0,119210.0,0.4430745]
[1752847707155,0.3783449,119230.0,119220.0,0.3608]
[1752847707359,0.2945301,119220.0,119210.0,0.5703671]
[1752847707562,0.2945301,119220.0,119210.0,2.13389246]
[1752847707949,0.12688,119220.0,119210.0,2.13389246]
[1752847708153,0.05726,119220.0,119210.0,1.632283]
[1752847708352,0.10564,119230.0,119220.0,0.1676501]
[1752847708563,0.05726,119230.0,119220.0,1.07041956]
[1752847708754,0.0785,119240.0,119230.0,0.167636]
[1752847708953,0.05726,119240.0,119230.0,1.68948546]
[1752847709263,0.04926,119240.0,119230.0,1.69748546]
[1752847711158,1.34654406,119300.0,119250.0,0.0074]
[1752847711159,0.4026894,119290.0,119250.0,0.0074]
[1752847711360,0.2901358,119280.0,119270.0,0.40116]
[1752847711560,0.13970867,119280.0,119270.0,1.68994926]
[1752847711858,0.13970867,119280.0,119270.0,2.05074926]
[1752847712452,0.12257,119280.0,119270.0,2.05074926]
[1752847712653,0.05403,119280.0,119270.0,2.05814926]
[1752847713062,0.09984,119280.0,119270.0,2.05814926]
[1752847713759,0.05403,119280.0,119270.0,2.06643872]
[1752847714061,0.12257,119290.0,119280.0,0.2079258]
[1752847714261,0.12257,119290.0,119280.0,1.07033526]
[1752847714457,0.12257,119290.0,119280.0,0.5687258]
[1752847714659,0.2901217,119290.0,119280.0,1.07033526]
[1752847714859,0.09257,119290.0,119280.0,1.09197526]
[1752847715160,0.09257,119290.0,119280.0,0.5903658]
[1752847715353,0.09257,119290.0,119280.0,1.09197526]
[1752847715751,0.09257,119290.0,119280.0,0.5903658]
[1752847715953,0.09257,119290.0,119280.0,1.09197526]
[1752847716360,0.09257,119290.0,119280.0,1.15735783]
[1752847716561,0.09257,119290.0,119280.0,1.17202783]
[1752847719461,0.2828517,119290.0,119280.0,0.65574837]
[1752847719654,0.2828517,119290.0,119280.0,1.02997526]
[1752847719855,0.2828517,119290.0,119280.0,0.98624]
[1752847720267,0.2828517,119290.0,119280.0,1.48784946]
[1752847720462,0.2828517,119290.0,119280.0,0.3608]
[1752847720666,1.20212516,119290.0,119280.0,0.3608]
[1752847720862,1.20212516,119290.0,119270.0,0.98988]
[1752847720863,0.2215958,119280.0,119270.0,0.62908]
[1752847721165,0.2901358,119280.0,119270.0,0.7966599]
[1752847721558,0.2901358,119280.0,119270.0,1.29826936]
[1752847721762,0.2901358,119280.0,119270.0,1.66002936]
[1752847721961,0.2901358,119280.0,119270.0,1.1623399]
[1752847722262,0.12257,119280.0,119270.0,1.1623399]
[1752847722462,0.2901358,119280.0,119270.0,1.1623399]
[1752847723156,0.12257,119280.0,119270.0,1.66394936]
[1752847723557,0.12257,119280.0,119270.0,1.72594936]
[1752847723757,0.05403,119280.0,119270.0,1.2390099]
[1752847724265,0.09984,119280.0,119270.0,1.5998099]
[1752847724656,0.09984,119280.0,119270.0,2.10141936]
[1752847724863,0.09984,119280.0,119270.0,1.5998099]
[1752847725168,0.09984,119280.0,119270.0,2.10141936]
[1752847725366,0.09984,119280.0,119270.0,1.5998099]
[1752847725869,0.09984,119280.0,119270.0,2.10141936]
[1752847726065,0.09984,119290.0,119280.0,0.1675658]
[1752847726360,0.09984,119290.0,119280.0,1.10664526]
[1752847726566,0.09984,119290.0,119280.0,0.6050358]
[1752847726969,0.12257,119290.0,119280.0,1.09197526]
[1752847727268,0.290122,119290.0,119280.0,0.5283658]
[1752847727462,0.290122,119290.0,119280.0,1.02997526]
[1752847727658,0.290122,119290.0,119280.0,0.3608]
[1752847728170,0.290122,119290.0,119280.0,0.528366]
[1752847729273,0.290122,119290.0,119280.0,1.02997546]
[1752847730064,0.290122,119290.0,119280.0,0.86240946]
[1752847730269,0.290122,119290.0,119280.0,0.528366]
[1752847730574,0.290122,119290.0,119280.0,0.55808621]
[1752847730776,0.290122,119290.0,119280.0,0.58037675]
[1752847730966,0.290122,119290.0,119280.0,0.55065654]
[1752847732375,0.290122,119290.0,119280.0,0.528366]
[1752847733169,0.290122,119290.0,119280.0,0.55065654]
[1752847733979,0.290122,119290.0,119280.0,1.21937654]
[1752847734477,0.79173146,119290.0,119280.0,1.21937654]
[1752847734773,0.290122,119290.0,119280.0,1.21937654]
[1752847736772,0.290122,119290.0,119280.0,0.55065654]
[1752847736973,0.290122,119290.0,119280.0,1.21897654]
[1752847737178,0.290122,119290.0,119280.0,1.24869675]
[1752847737381,0.290122,119290.0,119280.0,1.21897654]
[1752847737678,0.367812,119290.0,119280.0,1.21897654]
[1752847737875,0.367812,119290.0,119280.0,1.74874621]
[1752847738072,0.367812,119290.0,119280.0,1.78910621]
[1752847738273,0.367812,119290.0,119280.0,1.76681567]
[1752847738473,0.367812,119290.0,119280.0,1.22484621]
[1752847738874,0.367812,119290.0,119280.0,1.72645567]
[1752847739780,0.367812,119290.0,119280.0,1.22484621]
[1752847740078,0.367812,119290.0,119280.0,1.72645567]
[1752847740379,0.367812,119290.0,119280.0,1.28684621]
[1752847740576,0.367812,119290.0,119280.0,1.78845567]
[1752847741376,0.367812,119290.0,119280.0,1.33142652]
[1752847741682,0.367812,119290.0,119280.0,1.77103598]
[1752847741982,0.367812,119290.0,119280.0,1.26942652]
[1752847742481,0.367812,119290.0,119280.0,1.23970631]
[1752847742682,0.367812,119290.0,119280.0,1.74131577]
[1752847742975,0.367812,119290.0,119280.0,1.26774758]
[1752847743178,0.367812,119290.0,119280.0,1.23790631]
[1752847743382,0.367812,119290.0,119280.0,0.60279028]
[1752847743587,0.367812,119290.0,119280.0,1.26791028]
[1752847744281,0.367812,119290.0,119280.0,0.73886428]
[1752847744579,0.86942146,119290.0,119280.0,0.69428397]
[1752847744879,1.03708546,119290.0,119280.0,0.02984397]
[1752847745081,1.03708546,119290.0,119280.0,0.69416397]
[1752847745282,0.535476,119290.0,119280.0,0.69416397]
[1752847745883,0.535476,119290.0,119280.0,0.86172997]
[1752847746181,0.535476,119290.0,119280.0,0.69416397]
[1752847749081,1.03708546,119290.0,119280.0,0.05223418]
[1752847749282,0.246296,119280.0,119270.0,0.71487418]
[1752847749487,1.23171546,119280.0,119270.0,0.68335021]
[1752847749678,0.730106,119280.0,119270.0,0.18997021]
[1752847749886,0.730106,119280.0,119270.0,0.68371021]
[1752847750886,0.730106,119280.0,119270.0,0.02239021]
[1752847751082,0.369306,119280.0,119270.0,0.02239021]
[1752847751286,0.730106,119280.0,119270.0,0.02239021]
[1752847751680,0.730106,119280.0,119270.0,0.18997021]
[1752847751884,0.369306,119280.0,119270.0,0.18997021]
[1752847752486,0.369306,119280.0,119270.0,0.05223418]
[1752847752683,0.730106,119280.0,119270.0,0.05223418]
[1752847752993,0.369306,119280.0,119270.0,0.21981418]
[1752847753190,0.369306,119280.0,119270.0,0.19742397]
[1752847753590,0.369306,119280.0,119270.0,1.12293343]
[1752847753790,0.369306,119280.0,119270.0,1.18471343]
[1752847754091,0.369306,119280.0,119270.0,0.68310397]
[1752847754284,0.369306,119280.0,119270.0,1.22929374]
[1752847754985,0.05462,119280.0,119270.0,1.21260977]
[1752847755192,0.222186,119280.0,119270.0,1.16802946]
[1752847755395,0.222186,119280.0,119270.0,0.66642]
[1752847755595,0.05462,119280.0,119270.0,0.66642]
[1752847755793,0.05462,119280.0,119270.0,1.16802946]
[1752847755998,0.2221859,119280.0,119270.0,1.22746988]
[1752847756197,0.2221859,119280.0,119270.0,1.16802946]
[1752847756401,0.3531731,119290.0,119280.0,0.2306659]
[1752847756605,0.3531731,119290.0,119280.0,1.87792863]
[1752847757007,0.3858631,119290.0,119280.0,1.87792863]
[1752847757897,0.4530831,119290.0,119280.0,0.13768951]
[1752847758109,0.4530831,119290.0,119280.0,0.73659624]
[1752847758402,0.4530831,119290.0,119280.0,0.70512624]
[1752847759100,0.4530831,119290.0,119280.0,1.23349224]
[1752847759300,0.4530831,119290.0,119280.0,1.85479497]
[1752847759601,0.4530831,119290.0,119280.0,1.82495873]
[1752847759991,0.4530831,119290.0,119280.0,1.16087873]
[1752847760292,0.4111922,119290.0,119280.0,1.82375873]
[1752847760494,0.4111922,119290.0,119280.0,1.85357863]
[1752847760698,0.3806122,119290.0,119280.0,1.85357863]
[1752847760992,0.3806122,119290.0,119280.0,1.82375873]
[1752847761191,0.3112822,119290.0,119280.0,1.77900546]
[1752847761602,0.3112822,119290.0,119280.0,1.82374648]
[1752847761904,0.3439722,119290.0,119280.0,1.82374648]
[1752847763503,0.3439722,119290.0,119280.0,1.82360105]
[1752847763705,0.302082,119290.0,119280.0,1.82360105]
[1752847763902,0.05462,119290.0,119280.0,1.82360105]
[1752847764200,0.2743679,119300.0,119290.0,0.3055919]
[1752847764397,0.2271579,119300.0,119290.0,1.2127245]
[1752847765505,0.2743679,119300.0,119290.0,1.2127245]
[1752847765801,0.2271579,119300.0,119290.0,1.2127245]
[1752847766006,0.05962,119300.0,119290.0,1.2127245]
[1752847766306,0.005,119300.0,119290.0,1.2127245]
[1752847766703,0.2221549,119310.0,119300.0,0.3009079]
[1752847767006,0.3020549,119310.0,119300.0,1.85404065]
[1752847767207,0.3020549,119310.0,119300.0,1.35243119]
[1752847767408,0.3020549,119310.0,119300.0,1.68650275]
[1752847767409,0.3692749,119310.0,119300.0,1.68650275]
[1752847767606,0.3692749,119310.0,119300.0,1.35243119]
[1752847767807,0.3692749,119310.0,119300.0,1.15474329]
[1752847768009,0.3692749,119310.0,119300.0,1.32228119]
[1752847769009,0.3692749,119310.0,119300.0,1.15474329]
[1752847769209,0.3692749,119310.0,119300.0,1.11438329]
[1752847769612,0.3692749,119310.0,119300.0,1.28192119]
[1752847769911,0.3692749,119310.0,119300.0,1.32228119]
[1752847770106,0.3692749,119310.0,119300.0,1.33903119]
[1752847772105,0.3692749,119310.0,119300.0,1.32228119]
[1752847772304,0.3692749,119310.0,119300.0,1.11438329]
[1752847772604,0.3692749,119310.0,119300.0,1.08458]
[1752847773203,0.3692749,119310.0,119300.0,1.09296019]
[1752847773409,0.3692749,119310.0,119300.0,1.33066138]
[1752847774112,0.3692749,119310.0,119300.0,1.30085809]
[1752847774714,0.3692749,119310.0,119300.0,1.13332019]
[1752847775212,0.3692749,119310.0,119300.0,0.73216019]
[1752847775411,0.3692749,119310.0,119300.0,0.89969799]
[1752847775611,0.3692749,119310.0,119300.0,0.94005799]
[1752847776117,0.3326349,119310.0,119300.0,1.46845745]
[1752847776416,0.2693649,119310.0,119300.0,1.85906074]
[1752847777315,0.2693649,119310.0,119300.0,1.35745128]
[1752847777510,0.2693649,119310.0,119300.0,1.85906074]
[1752847778313,0.2693649,119310.0,119300.0,1.35745128]
[1752847778508,0.2912149,119310.0,119300.0,1.35745128]
[1752847778818,0.2912149,119310.0,119300.0,0.99665128]
[1752847779114,0.87210436,119310.0,119300.0,1.09296019]
[1752847779314,0.87210436,119310.0,119300.0,0.04204]
[1752847779615,0.1675519,119290.0,119280.0,0.04102329]
[1752847779816,0.3689859,119280.0,119270.0,0.07452643]
[1752847780009,1.23139536,119280.0,119270.0,0.02980329]
[1752847780214,1.23139536,119280.0,119270.0,0.6628]
[1752847780722,0.369,119270.0,119260.0,0.04102329]
[1752847780920,0.369,119270.0,119250.0,0.40182329]
[1752847780921,0.3690141,119260.0,119250.0,0.40182329]
[1752847781222,0.87062356,119260.0,119250.0,1.06422329]
[1752847781517,0.1676081,119250.0,119240.0,0.43532643]
[1752847781823,0.87063756,119250.0,119240.0,0.3608]
[1752847782017,0.2897622,119240.0,119230.0,0.39060329]
[1752847782222,0.2897762,119230.0,119220.0,0.66177938]
[1752847782517,1.15218566,119230.0,119220.0,5.938e-05]
[1752847783224,0.1895143,119210.0,119200.0,1.69595609]
[1752847783420,0.2898043,119210.0,119200.0,2.35751609]
[1752847783619,0.2898043,119210.0,119200.0,1.03087769]
[1752847783817,0.79141376,119210.0,119200.0,0.66156]
[1752847784123,0.2898184,119200.0,119190.0,1.1896125]
[1752847784621,0.79142786,119200.0,119190.0,0.3608]
[1752847784816,0.1676925,119190.0,119180.0,1.02156]
[1752847785022,0.2898325,119190.0,119180.0,1.02156]
[1752847785616,0.2898325,119190.0,119180.0,1.1892665]
[1752847786014,0.2898325,119190.0,119180.0,1.2296265]
[1752847786818,0.2898325,119190.0,119180.0,1.02156]
[1752847787221,0.2898325,119190.0,119180.0,1.1892665]
[1752847787818,0.2898325,119190.0,119180.0,1.02156]
[1752847788017,0.79144196,119190.0,119180.0,1.02156]
[1752847788625,0.4156322,119180.0,119170.0,1.02004]
[1752847789124,0.4156322,119180.0,119170.0,0.5285206]
[1752847789323,0.0519,119180.0,119170.0,1.75616006]
[1752847789518,0.1677065,119180.0,119170.0,1.88194506]
[1752847789720,0.1677065,119180.0,119170.0,1.3803356]
[1752847789920,0.2679965,119180.0,119170.0,1.3384058]
[1752847790121,0.2898465,119180.0,119170.0,1.3384058]
[1752847790620,0.10029,119180.0,119170.0,1.3384058]
[1752847790921,0.0519,119190.0,119180.0,0.2348566]
[1752847791124,0.1056925,119200.0,119180.0,0.2348566]
[1752847791125,0.2898277,119200.0,119190.0,0.2348425]
[1752847791419,0.1676784,119200.0,119190.0,1.75505196]
[1752847791626,0.3518018,119210.0,119200.0,0.2348284]
[1752847791923,0.3518018,119210.0,119200.0,0.5956284]
[1752847792520,0.0519,119210.0,119200.0,1.09723786]
[1752847792721,0.3736328,119220.0,119210.0,0.2348143]
[1752847792926,0.3736328,119220.0,119210.0,1.75486376]
[1752847793220,0.3517828,119220.0,119210.0,1.2532543]
[1752847793828,0.2679517,119220.0,119210.0,1.75486376]
[1752847794219,0.3252153,119230.0,119220.0,0.1676503]
[1752847794424,0.3736053,119230.0,119220.0,1.08626976]
[1752847795020,0.3316944,119230.0,119220.0,1.09720976]
[1752847795225,0.3316804,119240.0,119230.0,0.2347862]
[1752847795420,0.3316804,119240.0,119230.0,1.2556262]
[1752847796423,0.3316804,119240.0,119230.0,1.2288362]
[1752847796621,0.3316804,119240.0,119230.0,1.02084]
[1752847796821,0.3316804,119240.0,119230.0,0.3608]
[1752847797021,0.3316804,119240.0,119230.0,1.02072]
[1752847797221,0.3316804,119240.0,119230.0,1.1883562]
[1752847797424,0.3316804,119240.0,119230.0,0.41701]
[1752847797622,0.3316804,119240.0,119230.0,1.01992]
[1752847797828,0.3316804,119240.0,119230.0,1.1875562]
[1752847798024,0.3316804,119240.0,119230.0,1.2279162]
[1752847798431,0.3316804,119240.0,119230.0,1.2547062]
[1752847798622,0.3316804,119240.0,119230.0,1.2437662]
[1752847799127,0.3316804,119240.0,119230.0,1.2433262]
[1752847799431,0.3316804,119240.0,119230.0,1.2542662]
[1752847800233,0.3430204,119240.0,119230.0,1.08663]
[1752847800430,0.3430204,119240.0,119230.0,1.2542662]
[1752847800827,0.3430204,119240.0,119230.0,1.75587566]
[1752847801131,0.3430204,119240.0,119230.0,1.2542662]
[1752847801521,0.2614404,119240.0,119230.0,1.75587566]
[1752847801825,0.4052804,119240.0,119230.0,1.2274762]
[1752847802226,0.2614404,119240.0,119230.0,1.2519862]
[1752847802429,0.3072304,119240.0,119230.0,1.2519862]
[1752847802629,0.3173904,119240.0,119230.0,1.2519862]
[1752847802924,0.3384404,119240.0,119230.0,1.2519862]
[1752847803231,0.3097995,119250.0,119240.0,0.2262421]
[1752847803428,0.3199595,119250.0,119240.0,1.15352156]
[1752847803624,0.3410095,119250.0,119240.0,0.48429]
[1752847803928,0.4088395,119250.0,119240.0,0.7185]
[1752847804129,0.3458921,119240.0,119230.0,0.40452]
[1752847804333,0.86855156,119240.0,119230.0,1.0642]
[1752847804735,0.86855156,119240.0,119230.0,0.7034]
[1752847805034,0.1676362,119230.0,119220.0,0.3608]
[1752847805334,0.4927405,119210.0,119200.0,0.04372]
[1752847805530,0.2934429,119200.0,119190.0,0.3608]
[1752847805835,0.2890224,119190.0,119180.0,0.40116]
[1752847806030,0.2890224,119190.0,119170.0,0.3608]
[1752847806031,0.4148223,119180.0,119170.0,0.3608]
[1752847806330,0.2680006,119170.0,119160.0,1.10556329]
[1752847806528,0.35727082,119170.0,119160.0,1.21773799]
[1752847806726,0.85888028,119170.0,119160.0,0.85685799]
[1752847807133,0.85888028,119170.0,119160.0,0.90158113]
[1752847807335,0.2890506,119170.0,119160.0,1.26233972]
[1752847807529,0.2890506,119170.0,119160.0,1.23257784]
[1752847808640,0.2890506,119170.0,119160.0,0.8270547]